bitfinex-derivatives/quotes_BTCF0:USTF0_20260104
["timestamp","ask_amount","ask_price","bid_price","bid_amount"]
[1767538921317,0.00921183,91419.0,91408.0,0.09304]
[1767538921513,0.00921183,91419.0,91409.0,0.010944]
[1767538921817,0.00921183,91419.0,91410.0,0.010944]
[1767538922120,0.00921183,91423.0,91412.0,0.010944]
[1767538923827,0.00921183,91423.0,91414.0,0.010944]
[1767538924012,0.09766737,91426.0,91414.0,0.010944]
[1767538924212,0.02546899,91425.0,91414.0,0.010944]
[1767538924512,0.02546899,91424.0,91414.0,0.010944]
[1767538924713,0.1068792,91426.0,91414.0,0.010944]
[1767538924910,0.02547024,91425.0,91414.0,0.010944]
[1767538925111,0.1068792,91426.0,91414.0,0.010944]
[1767538925316,0.02547024,91425.0,91414.0,0.010944]
[1767538925618,0.1068792,91426.0,91414.0,0.010944]
[1767538925912,0.02547174,91425.0,91414.0,0.010944]
[1767538926220,0.00921183,91425.0,91414.0,0.010944]
[1767538926518,0.00921183,91425.0,91412.0,0.010944]
[1767538926727,0.03468409,91424.0,91410.0,0.010944]
[1767538926907,0.00921183,91424.0,91410.0,0.010944]
[1767538927113,0.1068792,91423.0,91408.0,0.09304]
[1767538927411,0.00921183,91421.0,91409.0,0.010944]
[1767538927914,0.00921183,91419.0,91408.0,0.09304]
[1767538928113,0.00921183,91417.0,91408.0,0.09304]
[1767538928822,0.09766737,91418.0,91408.0,0.09304]
[1767538930014,0.02015483,91421.0,91385.0,0.07873012]
[1767538930015,0.00921183,91404.0,91385.0,0.07873012]
[1767538930322,0.00921183,91403.0,91389.0,0.010947]
[1767538931122,0.00921183,91403.0,91391.0,0.010946]
[1767538931724,0.00921183,91405.0,91392.0,0.010946]
[1767538933622,0.00921183,91405.0,91394.0,0.010946]
[1767538933825,0.00921183,91411.0,91396.0,0.010946]
[1767538937226,0.00921183,91411.0,91391.0,0.10660245]
[1767538938023,0.09304,91419.0,91406.0,0.09565645]
[1767538938231,0.02541834,91418.0,91406.0,0.09565645]
[1767538938429,0.09304,91419.0,91406.0,0.09565645]
[1767538939535,0.09304,91419.0,91406.0,0.1054199]
[1767538940735,0.02015483,91424.0,91406.0,0.1054199]
[1767538940934,0.09304,91423.0,91406.0,0.1054199]
[1767538941234,0.010943,91422.0,91406.0,0.1054199]
[1767538941437,0.09304,91423.0,91406.0,0.1054199]
[1767538942036,0.010943,91420.0,91406.0,0.1054199]
[1767538944528,0.103983,91423.0,91407.0,0.1054199]
[1767538946235,0.010943,91421.0,91407.0,0.1054199]
[1767538947025,0.010943,91419.0,91407.0,0.1054199]
[1767538947427,0.09304,91423.0,91407.0,0.09565645]
[1767538948226,0.010943,91417.0,91407.0,0.09565645]
[1767538951539,0.010944,91416.0,91407.0,0.09565645]
[1767538951746,0.010944,91416.0,91396.0,0.09304]
[1767538951747,0.00955491,91409.0,91389.0,0.00954655]
[1767538951935,0.10542373,91400.0,91387.0,0.09304]
[1767538952342,0.010946,91394.0,91387.0,0.09304]
[1767538952732,0.010946,91397.0,91387.0,0.09304]
[1767538953537,0.010946,91393.0,91382.0,0.29349778]
[1767538953740,0.11497864,91400.0,91382.0,0.29349778]
[1767538953741,0.010946,91396.0,91382.0,0.38653778]
[1767538954437,0.010946,91396.0,91383.0,0.10000852]
[1767538956043,0.010946,91399.0,91385.0,0.09068593]
[1767538957236,0.010946,91397.0,91385.0,0.09068593]
[1767538957741,0.00953669,91399.0,91382.0,0.37699123]
[1767538958246,0.010946,91396.0,91382.0,0.47699975]
[1767538959045,0.00953669,91399.0,91382.0,0.46767716]
[1767538959253,0.11496042,91392.0,91382.0,0.00010445]
[1767538959438,0.010947,91387.0,91372.0,0.10000852]
[1767538959841,0.11496042,91392.0,91372.0,0.10000852]
[1767538960037,0.010948,91380.0,91367.0,0.09304]
[1767538960244,0.010947,91383.0,91368.0,0.10000852]
[1767538960443,0.10542373,91380.0,91368.0,0.09068593]
[1767538961852,8.554e-05,91382.0,91368.0,0.09068593]
[1767538962052,8.554e-05,91382.0,91368.0,0.10000852]
[1767538963651,8.554e-05,91382.0,91369.0,0.00932259]
[1767538963852,8.554e-05,91382.0,91369.0,0.10000852]
[1767538966649,0.010947,91390.0,91372.0,0.00932259]
[1767538966843,0.09304,91394.0,91383.0,0.10000852]
[1767538968050,0.09304,91394.0,91383.0,0.09068593]
[1767538970258,0.010946,91393.0,91383.0,0.09068593]
[1767538970649,0.010947,91388.0,91378.0,0.09068593]
[1767538970954,0.010947,91385.0,91378.0,0.09068593]
[1767538971557,0.010947,91388.0,91378.0,0.09068593]
[1767538972557,0.010947,91386.0,91378.0,0.09068593]
[1767538972758,0.010947,91386.0,91374.0,0.00932259]
[1767538972759,0.010947,91384.0,91374.0,0.00932259]
[1767538972959,0.010947,91384.0,91367.0,0.09304]
[1767538972960,0.00953669,91382.0,91367.0,0.09304]
[1767538973158,0.11637173,91380.0,91367.0,0.09304]
[1767538973353,0.11637173,91380.0,91367.0,0.10236259]
[1767538973662,0.010948,91380.0,91368.0,0.00932259]
[1767538974163,0.11637173,91380.0,91368.0,0.00932259]
[1767538974461,0.010948,91380.0,91368.0,0.00932259]
[1767538975861,0.010948,91378.0,91368.0,0.00932259]
[1767538976458,0.00953669,91388.0,91368.0,0.00932259]
[1767538976763,0.010948,91379.0,91368.0,0.00932259]
[1767538983260,0.010948,91377.0,91367.0,0.18372593]
[1767538983557,0.010948,91376.0,91367.0,0.09304]
[1767538983753,0.10542373,91380.0,91367.0,0.09304]
[1767538984252,0.010948,91377.0,91367.0,0.09304]
[1767538985463,0.10542373,91380.0,91367.0,0.09304]
[1767538985654,0.02070516,91388.0,91368.0,0.01013003]
[1767538986764,0.010948,91382.0,91368.0,0.01013003]
[1767538989059,0.010947,91384.0,91368.0,0.01013003]
[1767538990469,0.010947,91382.0,91368.0,0.01013003]
[1767538999572,0.010948,91381.0,91368.0,0.01013003]
[1767539001775,0.010947,91384.0,91368.0,0.01013003]
[1767539002677,0.010948,91382.0,91368.0,0.01013003]
[1767539003878,0.00975816,91387.0,91370.0,0.010949]
[1767539004076,0.010947,91384.0,91370.0,0.010949]
[1767539005368,0.010948,91382.0,91370.0,0.010949]
[1767539007276,0.00975816,91387.0,91368.0,0.02107903]
[1767539007781,0.010948,91382.0,91368.0,0.02107903]
[1767539008072,0.010948,91382.0,91368.0,0.010949]
[1767539008379,0.010948,91382.0,91369.0,0.010949]
[1767539008980,0.010948,91382.0,91367.0,0.09304]
[1767539008981,0.010948,91382.0,91370.0,0.010949]
[1767539009278,0.00975816,91387.0,91370.0,0.010949]
[1767539009279,0.00975816,91386.0,91370.0,0.010949]
[1767539009477,0.02070616,91379.0,91367.0,0.09304]
[1767539009669,0.00975816,91374.0,91367.0,0.09304]
[1767539009874,0.00975816,91374.0,91360.0,0.01095]
[1767539010176,0.09700488,91375.0,91361.0,0.09308]
[1767539010380,0.09700488,91375.0,91362.0,0.01095]
[1767539011379,0.09700488,91375.0,91365.0,0.010949]
[1767539012482,0.09700488,91375.0,91362.0,0.01095]
[1767539012874,0.00929589,91367.0,91350.0,0.35908393]
[1767539013073,0.02024489,91366.0,91352.0,0.010951]
[1767539013279,0.00929589,91366.0,91352.0,0.010951]
[1767539013480,0.00929589,91366.0,91354.0,0.010951]
[1767539013682,0.00929589,91366.0,91355.0,0.010951]
[1767539013876,0.09308,91380.0,91351.0,0.09308]
[1767539013877,0.00932833,91371.0,91357.0,0.01095]
[1767539014175,0.09699517,91372.0,91354.0,0.00966467]
[1767539014786,0.09699517,91372.0,91361.0,0.01095]
[1767539015079,0.09308,91375.0,91362.0,0.00966467]
[1767539015675,0.09308,91375.0,91361.0,0.10001651]
[1767539015884,0.09308,91375.0,91364.0,0.01095]
[1767539016081,0.09699517,91388.0,91367.0,0.09035184]
[1767539016285,0.09699517,91388.0,91356.0,0.01095]
[1767539016286,0.02544344,91387.0,91374.0,0.00966467]
[1767539016585,0.02544344,91386.0,91374.0,0.00966467]
[1767539016786,0.09308,91389.0,91374.0,0.00966467]
[1767539016985,0.02544087,91388.0,91373.0,0.10130084]
[1767539017185,0.02544087,91387.0,91373.0,0.10130084]
[1767539017487,0.02544087,91386.0,91373.0,0.10130084]
[1767539017686,0.09308,91389.0,91373.0,0.10130084]
[1767539017883,0.0254409,91388.0,91373.0,0.10130084]
[1767539018084,0.0254409,91387.0,91373.0,0.10130084]
[1767539018285,0.0254409,91386.0,91373.0,0.10130084]
[1767539018486,0.09308,91389.0,91373.0,0.10130084]
[1767539018684,0.02544094,91388.0,91373.0,0.10130084]
[1767539018984,0.02544094,91387.0,91373.0,0.10130084]
[1767539019184,0.02544094,91386.0,91373.0,0.10130084]
[1767539019388,0.09308,91389.0,91373.0,0.10130084]
[1767539019593,0.00932833,91387.0,91365.0,0.09035184]
[1767539019783,0.04571632,91386.0,91369.0,0.010949]
[1767539019986,0.02027533,91386.0,91369.0,0.010949]
[1767539020292,0.02027533,91386.0,91366.0,0.02061367]
[1767539020992,0.00932833,91385.0,91366.0,0.02061367]
[1767539022381,0.010947,91384.0,91366.0,0.00966467]
[1767539023289,0.02027633,91378.0,91363.0,0.09308]
[1767539023489,0.1063235,91374.0,91354.0,0.10001651]
[1767539023689,0.02027733,91372.0,91355.0,0.104031]
[1767539023881,0.02027733,91372.0,91355.0,0.21347551]
[1767539024284,0.02027733,91372.0,91355.0,0.20252451]
[1767539024488,0.010949,91370.0,91355.0,0.20252451]
[1767539024690,0.00932833,91372.0,91355.0,0.20252451]
[1767539024691,0.010949,91368.0,91355.0,0.20252451]
[1767539026896,0.010949,91368.0,91355.0,0.21218918]
[1767539028998,0.010949,91371.0,91356.0,0.00966467]
[1767539029194,0.010949,91371.0,91358.0,0.00966467]
[1767539029399,0.010949,91371.0,91359.0,0.00966467]
[1767539029894,0.1063235,91378.0,91359.0,0.00966467]
[1767539030095,0.010949,91373.0,91360.0,0.00966467]
[1767539030299,0.010948,91375.0,91363.0,0.09035184]
[1767539030501,0.010948,91375.0,91364.0,0.00966467]
[1767539031298,0.010948,91375.0,91363.0,0.09035184]
[1767539031498,0.010948,91375.0,91360.0,0.00966467]
[1767539032092,0.00932833,91376.0,91358.0,0.09035184]
[1767539032594,0.1063235,91374.0,91357.0,0.01095]
[1767539032793,0.00932833,91373.0,91357.0,0.01095]
[1767539033395,0.00932833,91373.0,91359.0,0.01095]
[1767539034002,0.09699517,91374.0,91355.0,0.10274467]
[1767539034313,0.09699517,91374.0,91356.0,0.00966467]
[1767539034517,0.09699517,91374.0,91361.0,0.01095]
[1767539035512,0.09699517,91374.0,91362.0,0.01095]
[1767539036215,0.09699517,91374.0,91356.0,0.02061567]
[1767539037216,0.10794317,91374.0,91356.0,0.02061567]
[1767539039212,0.010949,91371.0,91356.0,0.02061567]
[1767539039514,0.010949,91370.0,91355.0,0.18343184]
[1767539040115,0.010949,91369.0,91355.0,0.18343184]
[1767539040316,0.010949,91369.0,91355.0,0.19438284]
[1767539041513,0.01095,91365.0,91355.0,0.09308]
[1767539041706,0.00909276,91368.0,91355.0,0.010951]
[1767539041905,0.010949,91368.0,91355.0,0.010951]
[1767539042108,0.010949,91371.0,91358.0,0.01095]
[1767539042414,0.010949,91373.0,91358.0,0.01095]
[1767539042922,0.00909276,91376.0,91356.0,0.00950597]
[1767539042923,0.010948,91375.0,91356.0,0.00950597]
[1767539043112,0.00909276,91376.0,91361.0,0.01095]
[1767539043311,0.00909276,91376.0,91364.0,0.01095]
[1767539043818,0.09308,91380.0,91368.0,0.00950597]
[1767539044008,0.09308,91385.0,91368.0,0.00950597]
[1767539044209,0.02545144,91384.0,91373.0,0.010948]
[1767539044415,0.09308,91385.0,91373.0,0.010948]
[1767539044714,0.02545198,91384.0,91373.0,0.010948]
[1767539044918,0.104027,91385.0,91373.0,0.010948]
[1767539045116,0.02545198,91384.0,91373.0,0.010948]
[1767539045315,0.02545245,91383.0,91370.0,0.010949]
[1767539045517,0.104027,91385.0,91370.0,0.010949]
[1767539045708,0.010948,91382.0,91365.0,0.1072364]
[1767539046117,0.010948,91382.0,91365.0,0.09773043]
[1767539046612,0.010949,91371.0,91356.0,0.02045697]
[1767539046826,0.010947,91383.0,91356.0,0.010951]
[1767539046827,0.00909276,91369.0,91356.0,0.010951]
[1767539047718,0.09898424,91370.0,91358.0,0.01095]
[1767539048816,0.108077,91370.0,91358.0,0.01095]
[1767539049313,0.108077,91370.0,91356.0,0.010951]
[1767539050119,0.119026,91370.0,91356.0,0.010951]
[1767539050416,0.119026,91370.0,91354.0,0.09308]
[1767539050417,0.010949,91368.0,91354.0,0.09308]
[1767539051213,0.010949,91366.0,91354.0,0.09308]
[1767539051625,0.00909276,91361.0,91349.0,0.00218942]
[1767539052321,0.01095,91358.0,91349.0,0.00218942]
[1767539052515,0.00909276,91360.0,91349.0,0.00218942]
[1767539052721,0.00909276,91358.0,91349.0,0.00218942]
[1767539053808,0.09898424,91359.0,91349.0,0.00218942]
[1767539054319,0.010951,91357.0,91349.0,0.00218942]
[1767539056223,0.01095,91360.0,91349.0,0.00218942]
[1767539057829,0.01095,91358.0,91349.0,0.00218942]
[1767539058324,0.00909276,91360.0,91349.0,0.00218942]
[1767539059028,0.00909276,91359.0,91349.0,0.00218942]
[1767539060229,0.00909276,91359.0,91350.0,0.010951]
[1767539060616,0.00909276,91359.0,91351.0,0.010951]
[1767539061529,0.09898424,91360.0,91351.0,0.010951]
[1767539062226,0.108077,91356.0,91346.0,0.010952]
[1767539062532,0.108077,91356.0,91335.0,0.00950597]
[1767539062533,0.00909276,91354.0,91344.0,0.010952]
[1767539062718,0.00909276,91354.0,91340.0,0.010952]
[1767539063229,0.00909276,91352.0,91340.0,0.010952]
[1767539063427,0.00909276,91352.0,91343.0,0.010952]
[1767539064325,0.108077,91351.0,91340.0,0.010952]
[1767539064527,0.00909276,91350.0,91340.0,0.010952]
[1767539065028,0.00909276,91350.0,91335.0,0.09308]
[1767539065230,0.00909276,91350.0,91337.0,0.010953]
[1767539065531,0.09898424,91351.0,91335.0,0.09308]
[1767539066233,0.09898424,91351.0,91336.0,0.010953]
[1767539068330,0.09898424,91351.0,91338.0,0.010953]
[1767539069033,0.108077,91351.0,91338.0,0.010953]
[1767539069335,0.108077,91351.0,91341.0,0.010952]
[1767539069836,0.09898424,91351.0,91341.0,0.010952]
[1767539070734,0.2045764,91351.0,91341.0,0.010952]
[1767539071037,0.2045764,91351.0,91338.0,0.010953]
[1767539071829,0.2045764,91351.0,91339.0,0.010953]
[1767539072234,0.2045764,91351.0,91335.0,0.09308]
[1767539072235,0.2045764,91351.0,91342.0,0.010952]
[1767539075131,0.2137844,91351.0,91342.0,0.010952]
[1767539076038,0.2137844,91351.0,91339.0,0.010953]
[1767539076441,0.10819224,91351.0,91335.0,0.09308]
[1767539076635,0.10819224,91351.0,91341.0,0.010952]
[1767539076839,0.10559216,91350.0,91341.0,0.010952]
[1767539077640,0.10819224,91351.0,91341.0,0.010952]
[1767539077839,0.2137844,91351.0,91341.0,0.010952]
[1767539078443,0.2137844,91351.0,91339.0,0.010953]
[1767539078636,0.10819224,91351.0,91339.0,0.010953]
[1767539079041,0.010951,91354.0,91341.0,0.010952]
[1767539079233,0.020159,91355.0,91335.0,0.09308]
[1767539080247,0.009208,91355.0,91343.0,0.010952]
[1767539081448,0.009208,91355.0,91346.0,0.010952]
[1767539083448,0.009208,91355.0,91343.0,0.010952]
[1767539083750,0.009208,91353.0,91343.0,0.010952]
[1767539084246,0.009208,91353.0,91344.0,0.010952]
[1767539088955,0.10555073,91353.0,91342.0,0.010952]
[1767539089153,0.009208,91352.0,91342.0,0.010952]
[1767539090568,0.009208,91352.0,91335.0,0.09308]
[1767539090569,0.010952,91349.0,91338.0,0.010953]
[1767539090855,0.009208,91349.0,91335.0,0.09308]
[1767539091153,0.010952,91343.0,91334.0,0.0001135]
[1767539091368,0.009208,91341.0,91326.0,0.010954]
[1767539091554,0.11654516,91340.0,91327.0,0.010954]
[1767539092055,0.10559216,91340.0,91328.0,0.010954]
[1767539092355,8.502e-05,91339.0,91328.0,0.010954]
[1767539092550,8.502e-05,91339.0,91330.0,0.010954]
[1767539092754,8.502e-05,91339.0,91326.0,0.010954]
[1767539093557,0.00929302,91339.0,91327.0,0.010954]
[1767539093754,0.010953,91338.0,91325.0,0.09308]
[1767539093951,0.00929302,91339.0,91327.0,0.010954]
[1767539094151,0.02024602,91339.0,91326.0,0.010954]
[1767539094561,0.00929302,91339.0,91326.0,0.010954]
[1767539094857,0.00929302,91339.0,91328.0,0.010954]
[1767539095056,8.502e-05,91339.0,91328.0,0.010954]
[1767539095860,8.502e-05,91339.0,91325.0,0.09308]
[1767539097158,8.502e-05,91339.0,91327.0,0.010954]
[1767539097961,0.01103802,91339.0,91327.0,0.010954]
[1767539098163,8.502e-05,91339.0,91327.0,0.010954]
[1767539099669,8.502e-05,91339.0,91328.0,0.010954]
[1767539100356,8.502e-05,91339.0,91328.0,0.10479421]
[1767539100561,0.010952,91349.0,91336.0,0.00924081]
[1767539101261,0.010952,91349.0,91335.0,0.0955534]
[1767539101570,4.739e-05,91348.0,91335.0,0.0955534]
[1767539101761,4.739e-05,91348.0,91336.0,0.00924081]
[1767539101965,0.09312,91358.0,91343.0,0.00924081]
[1767539102163,0.09312,91358.0,91344.0,0.00924081]
[1767539103070,0.09312,91358.0,91346.0,0.010952]
[1767539105372,0.10407,91358.0,91346.0,0.010952]
[1767539105563,0.010951,91356.0,91343.0,0.0955534]
[1767539105761,0.010951,91356.0,91338.0,0.010953]
[1767539105963,0.010951,91356.0,91338.0,0.00924081]
[1767539106868,0.010951,91355.0,91341.0,0.010952]
[1767539107063,0.010951,91354.0,91341.0,0.010952]
[1767539108374,0.010951,91356.0,91343.0,0.010952]
[1767539111773,0.10407,91358.0,91345.0,0.010952]
[1767539113276,0.10407,91358.0,91346.0,0.010952]
[1767539114074,0.00969528,91367.0,91348.0,0.00924081]
[1767539114373,0.09312,91366.0,91350.0,0.010951]
[1767539114970,0.10281528,91366.0,91350.0,0.010951]
[1767539115162,0.01095,91364.0,91350.0,0.010951]
[1767539115360,0.10281528,91366.0,91350.0,0.010951]
[1767539115670,0.00969528,91365.0,91350.0,0.010951]
[1767539116065,0.00969528,91365.0,91348.0,0.010952]
[1767539117276,0.01095,91362.0,91348.0,0.010952]
[1767539120476,0.02064528,91362.0,91346.0,0.010952]
[1767539120672,0.00969528,91351.0,91331.0,0.00924081]
[1767539120976,0.010952,91347.0,91332.0,0.09308]
[1767539121484,0.010952,91345.0,91332.0,0.09308]
[1767539123273,0.09970692,91345.0,91327.0,0.00924081]
[1767539123473,0.010952,91344.0,91330.0,0.010954]
[1767539126483,0.010952,91344.0,91329.0,0.00924081]
[1767539126781,0.010952,91344.0,91330.0,0.11483297]
[1767539127182,0.010952,91344.0,91330.0,0.00924081]
[1767539127477,0.010952,91344.0,91332.0,0.010953]
[1767539127982,0.010952,91347.0,91332.0,0.010953]
[1767539128378,0.010952,91345.0,91333.0,0.010953]
[1767539129582,0.010952,91345.0,91331.0,0.010954]
[1767539129877,0.010952,91344.0,91331.0,0.010954]
[1767539130280,0.010952,91347.0,91331.0,0.010954]
[1767539130679,0.010952,91347.0,91330.0,0.00924081]
[1767539130680,0.010952,91343.0,91328.0,0.010954]
[1767539131782,0.010952,91343.0,91330.0,0.010954]
[1767539131972,0.010952,91343.0,91327.0,0.09308]
[1767539131973,0.10872529,91342.0,91327.0,0.09308]
[1767539132171,0.010953,91335.0,91326.0,0.09308]
[1767539132568,0.010953,91338.0,91326.0,0.09308]
[1767539133273,0.010953,91336.0,91326.0,0.09308]
[1767539133679,0.02039235,91335.0,91320.0,0.010955]
[1767539133881,0.00943935,91333.0,91320.0,0.09312]
[1767539134788,0.010953,91334.0,91320.0,0.09312]
[1767539135282,0.00965517,91325.0,91309.0,0.07879715]
[1767539135484,0.00965517,91324.0,91312.0,0.010956]
[1767539135679,0.09558913,91325.0,91314.0,0.010956]
[1767539135874,0.00965517,91328.0,91314.0,0.010956]
[1767539136278,0.00965517,91328.0,91316.0,0.010955]
[1767539136479,0.010954,91329.0,91316.0,0.010955]
[1767539136881,0.09558913,91330.0,91311.0,0.00990397]
[1767539137082,0.00965517,91339.0,91321.0,0.010955]
[1767539137284,0.010953,91334.0,91321.0,0.010955]
[1767539138088,0.00965517,91342.0,91323.0,0.00990397]
[1767539138289,0.010953,91335.0,91323.0,0.00990397]
[1767539138677,0.010953,91335.0,91322.0,0.10234112]
[1767539138878,0.010953,91335.0,91322.0,0.09138612]
[1767539140381,0.010953,91333.0,91318.0,0.010955]
[1767539140581,0.010953,91333.0,91319.0,0.09312]
[1767539141484,0.010953,91333.0,91320.0,0.010955]
[1767539141889,0.00965517,91335.0,91320.0,0.010955]
[1767539143791,0.010953,91334.0,91320.0,0.010955]
[1767539144589,0.02060817,91334.0,91320.0,0.010955]
[1767539144888,0.00965517,91329.0,91316.0,0.104075]
[1767539145085,0.00965517,91329.0,91316.0,0.010955]
[1767539145590,0.10654313,91330.0,91317.0,0.010955]
[1767539146687,0.010954,91328.0,91315.0,0.010956]
[1767539147683,0.010954,91327.0,91315.0,0.010956]
[1767539147998,0.010954,91324.0,91314.0,0.09312]
[1767539148494,0.1052443,91327.0,91308.0,0.00990397]
[1767539148797,0.010955,91322.0,91310.0,0.010956]
[1767539149193,0.010954,91325.0,91311.0,0.010956]
[1767539149796,0.010954,91325.0,91309.0,0.09312]
[1767539149997,0.010954,91330.0,91318.0,0.010955]
[1767539150194,0.010954,91330.0,91318.0,0.02085897]
[1767539150787,0.010954,91332.0,91320.0,0.00990397]
[1767539151292,0.010953,91335.0,91320.0,0.00990397]
[1767539151494,0.010953,91334.0,91320.0,0.00990397]
[1767539151799,0.010953,91333.0,91319.0,0.09138612]
[1767539152400,0.010953,91333.0,91320.0,0.010955]
[1767539152800,0.010954,91331.0,91320.0,0.010955]
[1767539153394,0.010954,91331.0,91318.0,0.010955]
[1767539153701,0.010954,91329.0,91317.0,0.010955]
[1767539154705,0.010954,91326.0,91315.0,0.09312]
[1767539155006,0.02060917,91326.0,91315.0,0.09312]
[1767539155190,0.02060917,91326.0,91312.0,0.010956]
[1767539155395,0.02060917,91326.0,91313.0,0.09312]
[1767539155600,0.02060917,91326.0,91313.0,0.104076]
[1767539155801,0.02060917,91326.0,91314.0,0.010956]
[1767539156000,0.010954,91326.0,91314.0,0.010956]
[1767539156411,0.010954,91328.0,91315.0,0.010955]
[1767539157011,0.010953,91334.0,91315.0,0.09138612]
[1767539157201,0.010953,91332.0,91323.0,0.00990397]
[1767539157401,0.09312,91338.0,91326.0,0.00990397]
[1767539157814,0.09312,91338.0,91325.0,0.09138612]
[1767539159012,0.00965517,91345.0,91326.0,0.00990397]
[1767539159217,0.0257487,91344.0,91327.0,0.010954]
[1767539159411,0.00965517,91345.0,91327.0,0.02085797]
[1767539159715,0.02575397,91344.0,91328.0,0.00990397]
[1767539159916,0.02575397,91343.0,91327.0,0.010954]
[1767539160215,0.010952,91342.0,91327.0,0.010954]
[1767539160809,0.010952,91342.0,91329.0,0.010954]
[1767539161005,0.010952,91346.0,91325.0,0.10129009]
[1767539161210,0.010952,91346.0,91333.0,0.09763572]
[1767539161211,0.02593354,91345.0,91333.0,0.09763572]
[1767539161412,0.00974862,91361.0,91339.0,0.09763572]
[1767539161614,0.010951,91355.0,91341.0,0.09763572]
[1767539162916,0.00974862,91359.0,91341.0,0.09763572]
[1767539163117,0.02592868,91358.0,91341.0,0.09763572]
[1767539163319,0.00974862,91359.0,91341.0,0.09763572]
[1767539163515,0.010951,91356.0,91341.0,0.10697629]
[1767539163817,0.09312,91361.0,91347.0,0.00934057]
[1767539164211,0.09312,91361.0,91350.0,0.010951]
[1767539164904,0.09312,91361.0,91347.0,0.00934057]
[1767539165105,0.09312,91361.0,91347.0,0.02029257]
[1767539165913,0.09312,91361.0,91347.0,0.010952]
[1767539167815,0.01095,91360.0,91347.0,0.010952]
[1767539168621,0.09312,91361.0,91347.0,0.010952]
[1767539169517,0.01095,91363.0,91349.0,0.02029157]
[1767539169706,0.01095,91364.0,91352.0,0.00934057]
[1767539169905,0.18594164,91372.0,91352.0,0.00934057]
[1767539170120,0.01095,91365.0,91352.0,0.00934057]
[1767539170412,0.01095,91365.0,91346.0,0.09312]
[1767539170413,0.00974862,91380.0,91360.0,0.00934057]
[1767539170606,0.10257026,91383.0,91364.0,0.00934057]
[1767539172311,0.0131367,91379.0,91364.0,0.00934057]
[1767539174020,0.010948,91377.0,91364.0,0.00934057]
[1767539174320,0.010948,91375.0,91363.0,0.09763572]
[1767539174519,0.010948,91375.0,91363.0,0.10697629]
[1767539174719,0.10257026,91373.0,91359.0,0.09312]
[1767539175019,0.00974862,91367.0,91352.0,0.010951]
[1767539175220,0.010949,91367.0,91353.0,0.09308]
[1767539175524,0.010949,91367.0,91355.0,0.1094499]
[1767539175717,0.010949,91367.0,91353.0,0.09308]
[1767539175917,0.010949,91367.0,91354.0,0.1094499]
[1767539176223,0.010949,91367.0,91353.0,0.09308]
[1767539176522,0.010949,91367.0,91354.0,0.10945709]
[1767539180224,0.01095,91365.0,91354.0,0.10945709]
[1767539182329,0.010949,91368.0,91354.0,0.10945709]
[1767539182924,0.010949,91366.0,91354.0,0.10945709]
[1767539183829,0.010949,91369.0,91355.0,0.00934057]
[1767539184732,0.010949,91371.0,91355.0,0.02029157]
[1767539184926,0.010949,91371.0,91357.0,0.01095]
[1767539185834,0.010949,91371.0,91358.0,0.01095]
[1767539186133,0.09282164,91373.0,91355.0,0.00934057]
[1767539186334,0.010949,91374.0,91360.0,0.01095]
[1767539186636,0.010948,91375.0,91365.0,0.00934057]
[1767539186826,0.0021887,91379.0,91365.0,0.00934057]
[1767539186827,0.010948,91377.0,91365.0,0.00934057]
[1767539188432,0.010948,91375.0,91365.0,0.00934057]
[1767539188634,0.010948,91375.0,91364.0,0.00934057]
[1767539189229,0.0021887,91379.0,91364.0,0.00934057]
[1767539189230,0.010948,91376.0,91364.0,0.00934057]
[1767539190334,0.010948,91376.0,91363.0,0.09763572]
[1767539191137,0.010948,91376.0,91363.0,0.10858572]
[1767539193230,0.010948,91376.0,91363.0,0.09763572]
[1767539194334,0.010949,91374.0,91363.0,0.09763572]
[1767539196143,0.0021887,91379.0,91365.0,0.00948847]
[1767539197134,0.010948,91375.0,91365.0,0.00948847]
[1767539198443,0.010948,91375.0,91364.0,0.09399048]
[1767539199743,0.010948,91377.0,91364.0,0.10198642]
[1767539199945,0.010948,91377.0,91365.0,0.00799594]
[1767539201346,0.010948,91376.0,91365.0,0.00799594]
[1767539202842,0.010948,91377.0,91363.0,0.01095]
[1767539204640,0.0021887,91379.0,91360.0,0.01095]
[1767539204832,0.010948,91376.0,91361.0,0.01095]
[1767539205534,0.010948,91376.0,91362.0,0.01095]
[1767539206046,0.010948,91374.0,91362.0,0.01095]
[1767539206248,0.00902176,91377.0,91358.0,0.09399048]
[1767539206446,0.010949,91373.0,91360.0,0.10551813]
[1767539206646,0.010949,91373.0,91359.0,0.01095]
[1767539207344,0.010949,91372.0,91359.0,0.01095]
[1767539207548,0.010949,91371.0,91359.0,0.01095]
[1767539207739,0.010949,91371.0,91358.0,0.09399048]
[1767539207938,0.010949,91371.0,91359.0,0.01095]
[1767539208245,0.010949,91374.0,91359.0,0.01095]
[1767539208445,0.010949,91373.0,91359.0,0.01095]
[1767539209554,0.010949,91373.0,91360.0,0.01095]
[1767539209755,0.010948,91376.0,91360.0,0.00799979]
[1767539209938,0.010948,91376.0,91363.0,0.01095]
[1767539213449,0.010948,91376.0,91365.0,0.01095]
[1767539215146,0.010948,91376.0,91363.0,0.01095]
[1767539215343,0.00902176,91378.0,91361.0,0.01095]
[1767539215657,0.00902176,91378.0,91359.0,0.09399048]
[1767539217156,0.010948,91375.0,91362.0,0.01095]
[1767539217358,0.010949,91374.0,91362.0,0.01095]
[1767539219454,0.00902176,91378.0,91359.0,0.1022426]
[1767539220058,0.00902176,91378.0,91360.0,0.10551813]
[1767539220256,0.010948,91375.0,91362.0,0.01095]
[1767539220856,0.010948,91377.0,91360.0,0.10551813]
[1767539221057,0.010948,91377.0,91360.0,0.11375343]
[1767539221552,0.0952687,91379.0,91360.0,0.11375343]
[1767539221758,0.0021887,91379.0,91372.0,0.0082353]
[1767539221957,0.0021887,91379.0,91368.0,0.0191843]
[1767539222158,0.0021887,91379.0,91368.0,0.0082353]
[1767539222650,0.0021887,91379.0,91366.0,0.10706128]
[1767539223859,0.0021887,91379.0,91368.0,0.010949]
[1767539224859,0.0021887,91379.0,91368.0,0.01927774]
[1767539228460,0.0021887,91379.0,91368.0,0.010949]
[1767539229256,0.0021887,91379.0,91368.0,0.01936568]
[1767539229474,0.0021887,91379.0,91368.0,0.00841668]
[1767539232166,0.010947,91385.0,91374.0,0.00837634]